[Event "Late-Titled-Tuesday-Blitz-April-02-2024"]
[Site "Chess.com"]
[Date "2024.04.02"]
[Round "7"]
[White "misterlamine"]
[Black "chess_sharparchitect"]
[Result "0-1"]
[WhiteElo "2442"]
[BlackElo "2295"]
[TimeControl "180+1"]
[EndTime "15:16:52 PDT"]
[Termination "chess_sharparchitect won by resignation"]

1. d4 {[%clk 0:02:57.6]} 1... Nf6 {[%clk 0:02:59.4]} 2. Nf3 {[%clk 0:02:56.1]}
2... d5 {[%clk 0:02:59]} 3. e3 {[%clk 0:02:47]} 3... c5 {[%clk 0:02:56.3]} 4.
Bb5+ {[%clk 0:02:46.4]} 4... Bd7 {[%clk 0:02:55.8]} 5. Bxd7+ {[%clk 0:02:45.9]}
5... Nbxd7 {[%clk 0:02:55.7]} 6. O-O {[%clk 0:02:44.7]} 6... e6 {[%clk 0:02:45]}
7. c3 {[%clk 0:02:44.4]} 7... Bd6 {[%clk 0:02:44.6]} 8. Nbd2 {[%clk 0:02:43.6]}
8... O-O {[%clk 0:02:43.8]} 9. Re1 {[%clk 0:02:43.9]} 9... Ne4 {[%clk
0:02:41.1]} 10. Nxe4 {[%clk 0:02:43]} 10... dxe4 {[%clk 0:02:41.1]} 11. Nd2
{[%clk 0:02:42.3]} 11... f5 {[%clk 0:02:41.1]} 12. Nf1 {[%clk 0:02:40.6]} 12...
Nf6 {[%clk 0:02:23.8]} 13. f3 {[%clk 0:02:39]} 13... cxd4 {[%clk 0:02:14.4]} 14.
exd4 {[%clk 0:02:38.6]} 14... e5 {[%clk 0:02:06.1]} 15. fxe4 {[%clk 0:02:26.9]}
15... Nxe4 {[%clk 0:02:05.8]} 16. Be3 {[%clk 0:01:59.8]} 16... Qf6 {[%clk
0:01:54]} 17. Nd2 {[%clk 0:01:39.9]} 17... Nxd2 {[%clk 0:01:37.4]} 18. Qxd2
{[%clk 0:01:38.2]} 18... f4 {[%clk 0:01:37.1]} 19. Bf2 {[%clk 0:01:37.7]} 19...
Rad8 {[%clk 0:01:22.4]} 20. Qe2 {[%clk 0:01:30]} 20... f3 {[%clk 0:00:52.4]} 21.
Qxf3 {[%clk 0:01:03]} 21... Qxf3 {[%clk 0:00:46.3]} 22. gxf3 {[%clk 0:01:03.5]}
22... exd4 {[%clk 0:00:40.4]} 23. Bxd4 {[%clk 0:01:03.3]} 23... Rxf3 {[%clk
0:00:37.5]} 24. Rad1 {[%clk 0:01:01.7]} 24... b6 {[%clk 0:00:29.4]} 25. Be5
{[%clk 0:00:51.5]} 25... Bc5+ {[%clk 0:00:29.2]} 26. Kh1 {[%clk 0:00:44.3]}
26... Re8 {[%clk 0:00:18.8]} 27. Rb1 {[%clk 0:00:40.2]} 27... Rf2 {[%clk
0:00:17.2]} 28. b4 {[%clk 0:00:29]} 28... Bf8 {[%clk 0:00:16.9]} 29. a4 {[%clk
0:00:26.7]} 29... g6 {[%clk 0:00:16.6]} 30. Bd4 {[%clk 0:00:23.5]} 30... Rxe1+
{[%clk 0:00:11.5]} 31. Rxe1 {[%clk 0:00:23.6]} 31... Ra2 {[%clk 0:00:12]} 32. a5
{[%clk 0:00:22.6]} 32... bxa5 {[%clk 0:00:12.2]} 33. b5 {[%clk 0:00:21.9]} 33...
Rb2 {[%clk 0:00:11.8]} 34. c4 {[%clk 0:00:20.4]} 34... Rb4 {[%clk 0:00:10.9]}
35. Bxa7 {[%clk 0:00:18.1]} 35... Rxc4 {[%clk 0:00:11.3]} 36. b6 {[%clk
0:00:18.1]} 36... Rb4 {[%clk 0:00:11]} 37. Re8 {[%clk 0:00:17.3]} 37... Kf7
{[%clk 0:00:10.8]} 38. Rc8 {[%clk 0:00:16.4]} 38... a4 {[%clk 0:00:09.1]} 39.
Rc7+ {[%clk 0:00:16.7]} 39... Ke6 {[%clk 0:00:08.4]} 40. b7 {[%clk 0:00:17.2]}
40... Bd6 {[%clk 0:00:06.6]} 41. Rg7 {[%clk 0:00:07.3]} 41... a3 {[%clk
0:00:06.5]} 42. Rxh7 {[%clk 0:00:03.6]} 42... a2 {[%clk 0:00:06.6]} 43. b8=Q
{[%clk 0:00:02.6]} 43... Bxb8 {[%clk 0:00:05.5]} 44. Bd4 {[%clk 0:00:03.5]}
44... Rb1+ {[%clk 0:00:04]} 45. Kg2 {[%clk 0:00:03]} 45... Be5 {[%clk
0:00:04.3]} 46. Bxe5 {[%clk 0:00:03]} 46... Kxe5 {[%clk 0:00:04.1]} 47. Ra7
{[%clk 0:00:03.9]} 47... a1=Q {[%clk 0:00:03.7]} 48. Rxa1 {[%clk 0:00:04.6]}
48... Rxa1 {[%clk 0:00:04.3]} 49. Kg3 {[%clk 0:00:03.7]} 49... Ra3+ {[%clk
0:00:04.9]} 50. Kh4 {[%clk 0:00:03.8]} 50... Kf6 {[%clk 0:00:05.5]} 51. h3
{[%clk 0:00:04.1]} 51... Ra4+ {[%clk 0:00:05.9]} 52. Kg3 {[%clk 0:00:04.4]}
52... Kg5 {[%clk 0:00:06.5]} 53. h4+ {[%clk 0:00:04.6]} 53... Kh5 {[%clk
0:00:06.6]} 54. Kh3 {[%clk 0:00:05.5]} 54... Ra3+ {[%clk 0:00:07]} 55. Kh2
{[%clk 0:00:05.4]} 55... Kxh4 {[%clk 0:00:07.6]} 56. Kg1 {[%clk 0:00:06.2]}
56... Kg3 {[%clk 0:00:07.7]} 57. Kf1 {[%clk 0:00:05.9]} 57... Ra2 {[%clk
0:00:08.2]} 58. Ke1 {[%clk 0:00:06.1]} 58... g5 {[%clk 0:00:08.7]} 59. Kd1
{[%clk 0:00:07]} 59... Kf3 {[%clk 0:00:09.1]} 60. Kc1 {[%clk 0:00:07.9]} 60...
Re2 {[%clk 0:00:09]} 61. Kb1 {[%clk 0:00:08.8]} 61... Ke3 {[%clk 0:00:09.4]} 0-1

[Event "Late-Titled-Tuesday-Blitz-April-02-2024"]
[Site "Chess.com"]
[Date "2024.04.02"]
[Round "7"]
[White "Practical-Play"]
[Black "Meri-Arabidze"]
[Result "1/2-1/2"]
[WhiteElo "2517"]
[BlackElo "2700"]
[TimeControl "180+1"]
[EndTime "15:16:53 PDT"]
[Termination "Game drawn by repetition"]

1. e4 {[%clk 0:03:00.9]} 1... c5 {[%clk 0:02:59.9]} 2. c3 {[%clk 0:02:57.5]}
2... e6 {[%clk 0:02:56]} 3. Nf3 {[%clk 0:02:56.9]} 3... d5 {[%clk 0:02:56.1]} 4.
exd5 {[%clk 0:02:56.2]} 4... exd5 {[%clk 0:02:56.1]} 5. d4 {[%clk 0:02:53.6]}
5... Nc6 {[%clk 0:02:56.3]} 6. Bb5 {[%clk 0:02:52.9]} 6... Bd6 {[%clk
0:02:56.5]} 7. O-O {[%clk 0:02:51.4]} 7... cxd4 {[%clk 0:02:56.1]} 8. Qxd4
{[%clk 0:02:39.5]} 8... Nf6 {[%clk 0:02:44.1]} 9. Re1+ {[%clk 0:02:36.2]} 9...
Be6 {[%clk 0:02:43.5]} 10. Bg5 {[%clk 0:02:08.3]} 10... O-O {[%clk 0:02:39.2]}
11. Bxc6 {[%clk 0:02:03.7]} 11... bxc6 {[%clk 0:02:40.1]} 12. Bxf6 {[%clk
0:02:03.9]} 12... Qxf6 {[%clk 0:02:40.3]} 13. Qxf6 {[%clk 0:02:02.9]} 13... gxf6
{[%clk 0:02:41.2]} 14. Nbd2 {[%clk 0:01:52.3]} 14... c5 {[%clk 0:02:37.5]} 15.
Rad1 {[%clk 0:01:38.4]} 15... Rab8 {[%clk 0:02:28.8]} 16. b3 {[%clk 0:01:28.1]}
16... Rfd8 {[%clk 0:02:28.3]} 17. Nf1 {[%clk 0:01:22.9]} 17... a5 {[%clk
0:02:12.5]} 18. Ne3 {[%clk 0:01:16.3]} 18... Be5 {[%clk 0:02:07.4]} 19. c4
{[%clk 0:01:01.9]} 19... Bc3 {[%clk 0:01:58.8]} 20. cxd5 {[%clk 0:00:45.9]}
20... Bxe1 {[%clk 0:01:57.7]} 21. Nxe1 {[%clk 0:00:46.5]} 21... Bd7 {[%clk
0:01:51.9]} 22. Nd3 {[%clk 0:00:45.6]} 22... Rbc8 {[%clk 0:01:42.7]} 23. Nc4
{[%clk 0:00:36.8]} 23... Bb5 {[%clk 0:01:23.4]} 24. Nf4 {[%clk 0:00:34.2]} 24...
Bxc4 {[%clk 0:01:11.6]} 25. bxc4 {[%clk 0:00:34]} 25... Rb8 {[%clk 0:01:12.4]}
26. Nd3 {[%clk 0:00:22.3]} 26... Rdc8 {[%clk 0:01:12.2]} 27. d6 {[%clk
0:00:18.7]} 27... Kf8 {[%clk 0:00:54.8]} 28. d7 {[%clk 0:00:17.2]} 28... Rc7
{[%clk 0:00:52.4]} 29. Nxc5 {[%clk 0:00:16.5]} 29... Rd8 {[%clk 0:00:52.6]} 30.
Rd5 {[%clk 0:00:09]} 30... Ke7 {[%clk 0:00:39]} 31. g3 {[%clk 0:00:09.3]} 31...
Rc6 {[%clk 0:00:39.2]} 32. Kg2 {[%clk 0:00:07]} 32... Rb8 {[%clk 0:00:31.7]} 33.
a4 {[%clk 0:00:06.7]} 33... Kd8 {[%clk 0:00:18]} 34. h4 {[%clk 0:00:07.2]} 34...
Rb4 {[%clk 0:00:17.5]} 35. h5 {[%clk 0:00:06.5]} 35... h6 {[%clk 0:00:15.5]} 36.
Kh3 {[%clk 0:00:06.5]} 36... Rxc5 {[%clk 0:00:14.5]} 37. Rxc5 {[%clk 0:00:06.3]}
37... Rxa4 {[%clk 0:00:15.4]} 38. Rc6 {[%clk 0:00:04.9]} 38... Kxd7 {[%clk
0:00:14.7]} 39. Rxf6 {[%clk 0:00:05.6]} 39... Rxc4 {[%clk 0:00:14]} 40. Rxh6
{[%clk 0:00:04.7]} 40... a4 {[%clk 0:00:12.2]} 41. Ra6 {[%clk 0:00:05.2]} 41...
Kc7 {[%clk 0:00:12.4]} 42. h6 {[%clk 0:00:05.4]} 42... Kb7 {[%clk 0:00:11.8]}
43. Ra5 {[%clk 0:00:05.3]} 43... Rc6 {[%clk 0:00:06.7]} 44. Rh5 {[%clk
0:00:04.2]} 44... a3 {[%clk 0:00:04.3]} 45. h7 {[%clk 0:00:04]} 45... Rc8 {[%clk
0:00:04.5]} 46. Ra5 {[%clk 0:00:03.8]} 46... Rh8 {[%clk 0:00:04.5]} 47. Rxa3
{[%clk 0:00:03.8]} 47... Rxh7+ {[%clk 0:00:05.1]} 48. Kg4 {[%clk 0:00:04.4]}
48... Kc6 {[%clk 0:00:05.5]} 49. f4 {[%clk 0:00:04.9]} 49... Kd6 {[%clk
0:00:05.4]} 50. Ra5 {[%clk 0:00:04.8]} 50... Ke7 {[%clk 0:00:05.4]} 51. Kf3
{[%clk 0:00:04.6]} 51... Rh1 {[%clk 0:00:05.1]} 52. g4 {[%clk 0:00:04.7]} 52...
Rf1+ {[%clk 0:00:04.7]} 53. Ke4 {[%clk 0:00:05.3]} 53... Rb1 {[%clk 0:00:03.7]}
54. Ra7+ {[%clk 0:00:04.5]} 54... Kf8 {[%clk 0:00:03.9]} 55. g5 {[%clk 0:00:04]}
55... Kg7 {[%clk 0:00:04.3]} 56. Kf5 {[%clk 0:00:04.3]} 56... Rb5+ {[%clk
0:00:04.4]} 57. Kg4 {[%clk 0:00:04.8]} 57... Rb4 {[%clk 0:00:04.7]} 58. Ra6
{[%clk 0:00:05.2]} 58... Rc4 {[%clk 0:00:04.2]} 59. Kf5 {[%clk 0:00:05.2]} 59...
Rc5+ {[%clk 0:00:04.5]} 60. Kg4 {[%clk 0:00:05.7]} 60... Rc4 {[%clk 0:00:05]}
61. Kg3 {[%clk 0:00:06]} 61... Rc3+ {[%clk 0:00:05.2]} 62. Kg4 {[%clk
0:00:06.5]} 62... Rc4 {[%clk 0:00:05.9]} 1/2-1/2

[Event "Late-Titled-Tuesday-Blitz-April-02-2024"]
[Site "Chess.com"]
[Date "2024.04.02"]
[Round "7"]
[White "Durarbayli"]
[Black "Crazy_girl99"]
[Result "1-0"]
[WhiteElo "2917"]
[BlackElo "2633"]
[TimeControl "180+1"]
[EndTime "15:16:55 PDT"]
[Termination "Durarbayli won by checkmate"]

1. d4 {[%clk 0:02:58.2]} 1... Nf6 {[%clk 0:02:56.3]} 2. c4 {[%clk 0:02:57.4]}
2... e6 {[%clk 0:02:47.4]} 3. Nc3 {[%clk 0:02:56.9]} 3... Bb4 {[%clk 0:02:47.5]}
4. f3 {[%clk 0:02:56.9]} 4... d5 {[%clk 0:02:47.6]} 5. a3 {[%clk 0:02:54]} 5...
Bxc3+ {[%clk 0:02:43.5]} 6. bxc3 {[%clk 0:02:54.9]} 6... O-O {[%clk 0:02:42.3]}
7. cxd5 {[%clk 0:02:48.3]} 7... exd5 {[%clk 0:02:41.6]} 8. e3 {[%clk 0:02:46.6]}
8... c5 {[%clk 0:02:37.9]} 9. Ne2 {[%clk 0:02:45.6]} 9... Re8 {[%clk 0:02:29.6]}
10. Nf4 {[%clk 0:02:40.9]} 10... Nc6 {[%clk 0:02:26.5]} 11. Bd3 {[%clk
0:02:28.5]} 11... cxd4 {[%clk 0:02:23.1]} 12. cxd4 {[%clk 0:02:29.4]} 12... Ne7
{[%clk 0:01:54.9]} 13. g4 {[%clk 0:01:50.2]} 13... g5 {[%clk 0:01:37.4]} 14. Ng2
{[%clk 0:01:40.2]} 14... Ng6 {[%clk 0:01:28.1]} 15. O-O {[%clk 0:01:24.3]} 15...
Be6 {[%clk 0:01:08.4]} 16. Rb1 {[%clk 0:01:13.3]} 16... Rb8 {[%clk 0:00:52.9]}
17. h3 {[%clk 0:01:12.8]} 17... h5 {[%clk 0:00:25.8]} 18. gxh5 {[%clk
0:01:03.1]} 18... Nxh5 {[%clk 0:00:22.5]} 19. f4 {[%clk 0:01:03.4]} 19... Ng3
{[%clk 0:00:22.4]} 20. f5 {[%clk 0:01:03.7]} 20... Nxf1 {[%clk 0:00:13.3]} 21.
fxe6 {[%clk 0:01:00.4]} 21... Rxe6 {[%clk 0:00:10.8]} 22. Qxf1 {[%clk
0:00:56.7]} 22... b5 {[%clk 0:00:09.4]} 23. Rxb5 {[%clk 0:00:50.4]} 23... Rxb5
{[%clk 0:00:09.1]} 24. Bxb5 {[%clk 0:00:51.3]} 24... Qb6 {[%clk 0:00:07.1]} 25.
Bd3 {[%clk 0:00:50]} 25... Rf6 {[%clk 0:00:06.2]} 26. Qe1 {[%clk 0:00:48.9]}
26... Qb3 {[%clk 0:00:04.1]} 27. Qe2 {[%clk 0:00:26.8]} 27... Rc6 {[%clk
0:00:04.3]} 28. Bd2 {[%clk 0:00:21.6]} 28... Qxa3 {[%clk 0:00:04.4]} 29. e4
{[%clk 0:00:18.2]} 29... dxe4 {[%clk 0:00:03.2]} 30. Bxe4 {[%clk 0:00:19.1]}
30... Rd6 {[%clk 0:00:03]} 31. Bxg5 {[%clk 0:00:10.7]} 31... Qa1+ {[%clk
0:00:02.8]} 32. Kh2 {[%clk 0:00:09.6]} 32... Qxd4 {[%clk 0:00:03.3]} 33. Bxg6
{[%clk 0:00:03.1]} 33... Rxg6 {[%clk 0:00:04.2]} 34. Qe8+ {[%clk 0:00:02.2]}
34... Kg7 {[%clk 0:00:04.5]} 35. Qe7 {[%clk 0:00:02.7]} 35... Qd5 {[%clk
0:00:03.4]} 36. h4 {[%clk 0:00:02.3]} 36... Qf5 {[%clk 0:00:03]} 37. Qe3 {[%clk
0:00:02.4]} 37... Re6 {[%clk 0:00:03.2]} 38. Qxa7 {[%clk 0:00:02.7]} 38... Qe5+
{[%clk 0:00:03.2]} 39. Kh1 {[%clk 0:00:02.2]} 39... Rd6 {[%clk 0:00:02.1]} 40.
Qg1 {[%clk 0:00:01.7]} 40... Qe2 {[%clk 0:00:01.4]} 41. Be3 {[%clk 0:00:01]}
41... Rd1 {[%clk 0:00:01.2]} 42. Ne1+ {[%clk 0:00:01.7]} 42... Kf8 {[%clk
0:00:01]} 43. Bf2 {[%clk 0:00:02.6]} 43... Ke8 {[%clk 0:00:01.5]} 44. Qg3 {[%clk
0:00:02.8]} 44... Qe4+ {[%clk 0:00:01.8]} 45. Kh2 {[%clk 0:00:03.3]} 45... Rd5
{[%clk 0:00:02.3]} 46. Ng2 {[%clk 0:00:03.9]} 46... Rf5 {[%clk 0:00:02.4]} 47.
Be3 {[%clk 0:00:04.5]} 47... Qe5 {[%clk 0:00:02.8]} 48. Bf4 {[%clk 0:00:04.9]}
48... Qe4 {[%clk 0:00:03.2]} 49. Qg4 {[%clk 0:00:05.5]} 49... Rf6 {[%clk
0:00:03.6]} 50. Qg5 {[%clk 0:00:05.5]} 50... Ke7 {[%clk 0:00:03.9]} 51. Be5
{[%clk 0:00:05.4]} 51... Qf5 {[%clk 0:00:03.4]} 52. Bxf6+ {[%clk 0:00:05.6]}
52... Qxf6 {[%clk 0:00:04.1]} 53. Qxf6+ {[%clk 0:00:06.2]} 53... Kxf6 {[%clk
0:00:05]} 54. Kg3 {[%clk 0:00:06.6]} 54... Kg6 {[%clk 0:00:05.4]} 55. Nf4+
{[%clk 0:00:07.5]} 55... Kh6 {[%clk 0:00:05.6]} 56. Nh3 {[%clk 0:00:08.4]} 56...
f6 {[%clk 0:00:06.4]} 57. Nf4 {[%clk 0:00:08.9]} 57... f5 {[%clk 0:00:06.7]} 58.
Nh3 {[%clk 0:00:09]} 58... Kg6 {[%clk 0:00:07.3]} 59. Nf4+ {[%clk 0:00:09.8]}
59... Kh6 {[%clk 0:00:07.6]} 60. Kf3 {[%clk 0:00:10.7]} 60... Kg7 {[%clk
0:00:04.7]} 61. Ke3 {[%clk 0:00:11.6]} 61... Kf6 {[%clk 0:00:05.6]} 62. Kd4
{[%clk 0:00:12.5]} 62... Kg7 {[%clk 0:00:03.8]} 63. Kd5 {[%clk 0:00:13.4]} 63...
Kh6 {[%clk 0:00:04.7]} 64. Ke5 {[%clk 0:00:13.9]} 64... Kh7 {[%clk 0:00:05.1]}
65. Kxf5 {[%clk 0:00:14.5]} 65... Kh6 {[%clk 0:00:06]} 66. Kg4 {[%clk
0:00:14.3]} 66... Kh7 {[%clk 0:00:06.9]} 67. Kg5 {[%clk 0:00:14.9]} 67... Kh8
{[%clk 0:00:07.2]} 68. Kg6 {[%clk 0:00:15.1]} 68... Kg8 {[%clk 0:00:07.4]} 69.
h5 {[%clk 0:00:15.7]} 69... Kh8 {[%clk 0:00:08.3]} 70. Nh3 {[%clk 0:00:14.4]}
70... Kg8 {[%clk 0:00:09.2]} 71. Ng5 {[%clk 0:00:14.4]} 71... Kh8 {[%clk
0:00:10.1]} 72. h6 {[%clk 0:00:14.5]} 72... Kg8 {[%clk 0:00:09.8]} 73. h7+
{[%clk 0:00:14.9]} 73... Kh8 {[%clk 0:00:10.7]} 74. Nf7# {[%clk 0:00:14.7]} 1-0

[Event "Late-Titled-Tuesday-Blitz-April-02-2024"]
[Site "Chess.com"]
[Date "2024.04.02"]
[Round "7"]
[White "Angry_Twin"]
[Black "Firouzja2003"]
[Result "1-0"]
[WhiteElo "2937"]
[BlackElo "3080"]
[TimeControl "180+1"]
[EndTime "15:16:57 PDT"]
[Termination "Angry_Twin won by checkmate"]

1. e4 {[%clk 0:03:00.9]} 1... c5 {[%clk 0:02:59.1]} 2. Nf3 {[%clk 0:03:01]} 2...
d6 {[%clk 0:02:59.1]} 3. Bb5+ {[%clk 0:03:01.6]} 3... Nd7 {[%clk 0:02:59]} 4.
O-O {[%clk 0:03:01.5]} 4... a6 {[%clk 0:02:58.5]} 5. Bd3 {[%clk 0:03:01.4]} 5...
Ngf6 {[%clk 0:02:58.8]} 6. Re1 {[%clk 0:03:01.5]} 6... e6 {[%clk 0:02:59]} 7. a4
{[%clk 0:03:00.8]} 7... b6 {[%clk 0:02:55.6]} 8. c3 {[%clk 0:03:00.1]} 8... Bb7
{[%clk 0:02:55.3]} 9. Na3 {[%clk 0:02:59.6]} 9... Rc8 {[%clk 0:02:47.1]} 10. Qe2
{[%clk 0:02:41.3]} 10... d5 {[%clk 0:02:07.8]} 11. exd5 {[%clk 0:02:33.6]} 11...
Nxd5 {[%clk 0:01:42.2]} 12. Bxa6 {[%clk 0:02:26]} 12... Bxa6 {[%clk 0:01:38.8]}
13. Qxa6 {[%clk 0:02:24.2]} 13... Be7 {[%clk 0:01:31.2]} 14. d4 {[%clk
0:02:24.3]} 14... cxd4 {[%clk 0:01:28]} 15. Nxd4 {[%clk 0:02:24.2]} 15... O-O
{[%clk 0:01:28.2]} 16. Qe2 {[%clk 0:02:22.3]} 16... Nc5 {[%clk 0:01:23.6]} 17.
Nab5 {[%clk 0:02:21.8]} 17... Bf6 {[%clk 0:01:21]} 18. Rd1 {[%clk 0:01:35.1]}
18... Qd7 {[%clk 0:01:14.3]} 19. Nf3 {[%clk 0:01:05.9]} 19... Nb3 {[%clk
0:01:06.3]} 20. Rb1 {[%clk 0:01:04.8]} 20... Qc6 {[%clk 0:01:05.9]} 21. Be3
{[%clk 0:01:02.8]} 21... Ra8 {[%clk 0:01:03]} 22. Nbd4 {[%clk 0:00:51.7]} 22...
Qxa4 {[%clk 0:01:00.8]} 23. Nxb3 {[%clk 0:00:50.6]} 23... Qxb3 {[%clk
0:01:01.7]} 24. Bd4 {[%clk 0:00:51.3]} 24... Rfc8 {[%clk 0:00:46.6]} 25. Bxf6
{[%clk 0:00:48.1]} 25... Nxf6 {[%clk 0:00:46.9]} 26. Nd4 {[%clk 0:00:48.6]}
26... Qc4 {[%clk 0:00:42.5]} 27. Qf3 {[%clk 0:00:48.3]} 27... h6 {[%clk
0:00:41.1]} 28. h3 {[%clk 0:00:45.7]} 28... b5 {[%clk 0:00:40.4]} 29. Nc2 {[%clk
0:00:45.8]} 29... Nd5 {[%clk 0:00:38.8]} 30. Ne3 {[%clk 0:00:37.6]} 30... Nxe3
{[%clk 0:00:38.9]} 31. Qxe3 {[%clk 0:00:38.3]} 31... b4 {[%clk 0:00:38.9]} 32.
Rbc1 {[%clk 0:00:34.2]} 32... b3 {[%clk 0:00:31.8]} 33. Rd4 {[%clk 0:00:31.8]}
33... Qc5 {[%clk 0:00:32.1]} 34. Rcd1 {[%clk 0:00:31.4]} 34... Qf5 {[%clk
0:00:29.3]} 35. R1d2 {[%clk 0:00:25.1]} 35... e5 {[%clk 0:00:16.9]} 36. Rd5
{[%clk 0:00:21.1]} 36... Ra1+ {[%clk 0:00:15.7]} 37. Kh2 {[%clk 0:00:21.4]}
37... Qb1 {[%clk 0:00:15.9]} 38. Qxe5 {[%clk 0:00:05.7]} 38... Raa8 {[%clk
0:00:04.6]} 39. R5d4 {[%clk 0:00:04.8]} 39... Re8 {[%clk 0:00:05]} 40. Qf4
{[%clk 0:00:04.7]} 40... Re1 {[%clk 0:00:05.3]} 41. Rd8+ {[%clk 0:00:03.4]}
41... Rxd8 {[%clk 0:00:06.1]} 42. Rxd8+ {[%clk 0:00:04.3]} 42... Kh7 {[%clk
0:00:06.7]} 43. Rd2 {[%clk 0:00:05.2]} 43... Rh1+ {[%clk 0:00:06.6]} 44. Kg3
{[%clk 0:00:05.7]} 44... Qg6+ {[%clk 0:00:07.2]} 45. Qg4 {[%clk 0:00:06.3]}
45... Qf6 {[%clk 0:00:07.2]} 46. Qe4+ {[%clk 0:00:06.8]} 46... g6 {[%clk
0:00:07.5]} 47. Qf4 {[%clk 0:00:07.5]} 47... Qe7 {[%clk 0:00:07.6]} 48. Qe3
{[%clk 0:00:07]} 48... Qc7+ {[%clk 0:00:06.8]} 49. Qf4 {[%clk 0:00:07.6]} 49...
Qe7 {[%clk 0:00:07.1]} 50. Qe3 {[%clk 0:00:07.9]} 50... Qc7+ {[%clk 0:00:07.3]}
51. f4 {[%clk 0:00:08.5]} 51... h5 {[%clk 0:00:07]} 52. Qe5 {[%clk 0:00:08.6]}
52... Qb6 {[%clk 0:00:03.9]} 53. Rd7 {[%clk 0:00:05.6]} 53... h4+ {[%clk
0:00:04.1]} 54. Kg4 {[%clk 0:00:05]} 54... Kh6 {[%clk 0:00:02]} 55. Qh8# {[%clk
0:00:04.7]} 1-0

[Event "Late-Titled-Tuesday-Blitz-April-02-2024"]
[Site "Chess.com"]
[Date "2024.04.02"]
[Round "7"]
[White "rasmussvane"]
[Black "yobdc"]
[Result "1-0"]
[WhiteElo "2887"]
[BlackElo "2589"]
[TimeControl "180+1"]
[EndTime "15:16:57 PDT"]
[Termination "rasmussvane won on time"]

1. e4 {[%clk 0:02:46.2]} 1... e5 {[%clk 0:02:55.5]} 2. Nf3 {[%clk 0:02:45]} 2...
Nc6 {[%clk 0:02:55.9]} 3. d4 {[%clk 0:02:45.5]} 3... exd4 {[%clk 0:02:55.5]} 4.
Nxd4 {[%clk 0:02:46.4]} 4... Nf6 {[%clk 0:02:55.2]} 5. Nc3 {[%clk 0:02:41.7]}
5... Bb4 {[%clk 0:02:54.6]} 6. Nxc6 {[%clk 0:02:42]} 6... bxc6 {[%clk
0:02:55.5]} 7. Bd3 {[%clk 0:02:41.8]} 7... O-O {[%clk 0:02:54.8]} 8. O-O {[%clk
0:02:41.8]} 8... d5 {[%clk 0:02:54.8]} 9. exd5 {[%clk 0:02:42.7]} 9... cxd5
{[%clk 0:02:54.1]} 10. h3 {[%clk 0:02:42.3]} 10... Re8 {[%clk 0:02:47.1]} 11.
Qf3 {[%clk 0:02:42]} 11... Rb8 {[%clk 0:02:44.2]} 12. Bf4 {[%clk 0:02:32.4]}
12... Bd6 {[%clk 0:02:42.6]} 13. b3 {[%clk 0:02:32.7]} 13... Rb4 {[%clk
0:02:42.9]} 14. Bd2 {[%clk 0:02:22.9]} 14... Rb7 {[%clk 0:02:36.9]} 15. Rfe1
{[%clk 0:02:20.5]} 15... c6 {[%clk 0:02:31.2]} 16. Bf4 {[%clk 0:02:18.9]} 16...
Rbe7 {[%clk 0:02:28.4]} 17. Rxe7 {[%clk 0:02:16.6]} 17... Rxe7 {[%clk
0:02:25.9]} 18. Rd1 {[%clk 0:02:13.8]} 18... h6 {[%clk 0:02:07.4]} 19. Na4
{[%clk 0:02:01.2]} 19... Qc7 {[%clk 0:02:07.2]} 20. Bxd6 {[%clk 0:02:00.2]}
20... Qxd6 {[%clk 0:02:08.1]} 21. c4 {[%clk 0:01:57.2]} 21... g5 {[%clk
0:01:41.5]} 22. Qg3 {[%clk 0:01:51.4]} 22... Qxg3 {[%clk 0:01:25.9]} 23. fxg3
{[%clk 0:01:52.3]} 23... Be6 {[%clk 0:01:21.4]} 24. c5 {[%clk 0:01:25.7]} 24...
Nd7 {[%clk 0:00:51]} 25. Kf2 {[%clk 0:01:24.1]} 25... Ne5 {[%clk 0:00:50.7]} 26.
Be2 {[%clk 0:01:22.7]} 26... f5 {[%clk 0:00:34.9]} 27. Nc3 {[%clk 0:01:20.8]}
27... Kg7 {[%clk 0:00:29.3]} 28. Bf3 {[%clk 0:01:20.7]} 28... Kf6 {[%clk
0:00:24.5]} 29. Rd2 {[%clk 0:01:18]} 29... Rb7 {[%clk 0:00:20.5]} 30. Rd4 {[%clk
0:01:16.7]} 30... a5 {[%clk 0:00:17.9]} 31. Be2 {[%clk 0:01:12.1]} 31... Rb4
{[%clk 0:00:17.4]} 32. Ke3 {[%clk 0:01:12.4]} 32... Nd7 {[%clk 0:00:17]} 33. Na4
{[%clk 0:01:12.7]} 33... Ke5 {[%clk 0:00:15.7]} 34. Rd2 {[%clk 0:00:45.7]} 34...
d4+ {[%clk 0:00:15.7]} 35. Kf2 {[%clk 0:00:43.5]} 35... Bd5 {[%clk 0:00:15.1]}
36. Bd3 {[%clk 0:00:36.3]} 36... Be4 {[%clk 0:00:15.4]} 37. Bc4 {[%clk
0:00:36.8]} 37... h5 {[%clk 0:00:11.2]} 38. Re2 {[%clk 0:00:32.3]} 38... h4
{[%clk 0:00:10.7]} 39. g4 {[%clk 0:00:30.8]} 39... Rxa4 {[%clk 0:00:07.5]} 40.
bxa4 {[%clk 0:00:29.1]} 40... Nxc5 {[%clk 0:00:08.4]} 41. gxf5 {[%clk
0:00:28.8]} 41... Kxf5 {[%clk 0:00:08.8]} 42. Rb2 {[%clk 0:00:23.9]} 42... Kf4
{[%clk 0:00:03.1]} 43. Rb8 {[%clk 0:00:23.9]} 43... d3 {[%clk 0:00:03.6]} 44.
Rf8+ {[%clk 0:00:21.9]} 44... Bf5 {[%clk 0:00:03.2]} 45. Rd8 {[%clk 0:00:15.7]}
45... Ne4+ {[%clk 0:00:02.8]} 46. Ke1 {[%clk 0:00:15.7]} 46... d2+ {[%clk
0:00:02.5]} 47. Ke2 {[%clk 0:00:15.7]} 47... Bg6 {[%clk 0:00:01.1]} 48. Rf8+
{[%clk 0:00:04.4]} 48... Ke5 {[%clk 0:00:01.5]} 49. Bb3 {[%clk 0:00:04.8]} 49...
Bh5+ {[%clk 0:00:01.9]} 50. Ke3 {[%clk 0:00:05.4]} 50... c5 {[%clk 0:00:01.8]}
51. Rh8 {[%clk 0:00:02.6]} 51... c4 {[%clk 0:00:02.3]} 52. Bc2 {[%clk
0:00:03.1]} 52... c3 {[%clk 0:00:02.3]} 53. Rxh5 {[%clk 0:00:02.7]} 53... Ng3
{[%clk 0:00:02.4]} 54. Rxg5+ {[%clk 0:00:03.1]} 54... Kf6 {[%clk 0:00:02.6]} 55.
Rxg3 {[%clk 0:00:03.1]} 55... hxg3 {[%clk 0:00:02.8]} 56. Kf3 {[%clk 0:00:03.4]}
56... Ke5 {[%clk 0:00:03.2]} 57. Kxg3 {[%clk 0:00:03.6]} 57... Kd4 {[%clk
0:00:04.1]} 58. Kf2 {[%clk 0:00:04]} 58... Kc4 {[%clk 0:00:03.7]} 59. h4 {[%clk
0:00:03.9]} 59... Kb4 {[%clk 0:00:04.6]} 60. Ke2 {[%clk 0:00:03.6]} 60... Ka3
{[%clk 0:00:05.5]} 61. h5 {[%clk 0:00:04.1]} 61... Kb2 {[%clk 0:00:06.4]} 62.
Kd1 {[%clk 0:00:04.4]} 1-0